[Event "Early-Titled-Tuesday-Blitz-January-23-2024"]
[Site "Chess.com"]
[Date "2024.01.23"]
[Round "3"]
[White "stollenmonster"]
[Black "tarno17"]
[Result "1-0"]
[WhiteElo "2905"]
[BlackElo "2077"]
[TimeControl "180+1"]
[EndTime "8:26:23 PST"]
[Termination "stollenmonster won by resignation"]

1. e4 {[%clk 0:03:00.9]} 1... c5 {[%clk 0:02:58.4]} 2. Nf3 {[%clk 0:03:00.8]}
2... e6 {[%clk 0:02:58.3]} 3. Be2 {[%clk 0:03:00.6]} 3... a6 {[%clk 0:02:57.7]}
4. c4 {[%clk 0:03:01.1]} 4... Nc6 {[%clk 0:02:45.9]} 5. Nc3 {[%clk 0:03:01]}
5... Qc7 {[%clk 0:02:35.7]} 6. O-O {[%clk 0:02:59]} 6... Nf6 {[%clk 0:02:35.6]}
7. d4 {[%clk 0:02:58.1]} 7... cxd4 {[%clk 0:02:35.7]} 8. Nxd4 {[%clk 0:02:59]}
8... Bb4 {[%clk 0:02:21.6]} 9. Nxc6 {[%clk 0:02:46.6]} 9... dxc6 {[%clk
0:02:19.2]} 10. Qd4 {[%clk 0:02:34.3]} 10... e5 {[%clk 0:02:09.5]} 11. Qe3
{[%clk 0:02:34.2]} 11... Bxc3 {[%clk 0:01:37]} 12. Qxc3 {[%clk 0:02:11.3]} 12...
c5 {[%clk 0:01:34.1]} 13. f4 {[%clk 0:02:06.7]} 13... Nxe4 {[%clk 0:01:24.5]}
14. Qxe5+ {[%clk 0:01:20.1]} 14... Qxe5 {[%clk 0:01:23.2]} 15. fxe5 {[%clk
0:01:20.4]} 15... h6 {[%clk 0:00:35.5]} 16. Bh5 {[%clk 0:01:09.1]} 16... O-O
{[%clk 0:00:30.4]} 17. Bf3 {[%clk 0:01:08.8]} 17... Ng5 {[%clk 0:00:28.2]} 18.
Bd5 {[%clk 0:01:06.4]} 18... Bg4 {[%clk 0:00:09.3]} 19. Be3 {[%clk 0:01:03.7]}
19... Rae8 {[%clk 0:00:04.7]} 20. Bxc5 {[%clk 0:01:02.7]} 20... Rxe5 {[%clk
0:00:04.8]} 21. Bxf8 {[%clk 0:01:02.8]} 21... Kxf8 {[%clk 0:00:05.7]} 22. Rae1
{[%clk 0:01:02.6]} 22... Be2 {[%clk 0:00:03.7]} 23. Rf2 {[%clk 0:01:02.3]} 23...
Bxc4 {[%clk 0:00:01.9]} 24. Rxe5 {[%clk 0:01:02.3]} 1-0

[Event "Early-Titled-Tuesday-Blitz-January-23-2024"]
[Site "Chess.com"]
[Date "2024.01.23"]
[Round "3"]
[White "Ali_rastbod"]
[Black "rionelG"]
[Result "1-0"]
[WhiteElo "2712"]
[BlackElo "2311"]
[TimeControl "180+1"]
[EndTime "8:26:25 PST"]
[Termination "Ali_rastbod won by resignation"]

1. e4 {[%clk 0:03:00.9]} 1... c5 {[%clk 0:03:00]} 2. Nf3 {[%clk 0:03:00.5]} 2...
d6 {[%clk 0:03:00.5]} 3. Bb5+ {[%clk 0:03:00.6]} 3... Nd7 {[%clk 0:03:00.2]} 4.
d4 {[%clk 0:02:58.9]} 4... a6 {[%clk 0:02:59.5]} 5. Bd3 {[%clk 0:02:57.4]} 5...
cxd4 {[%clk 0:02:57]} 6. Nxd4 {[%clk 0:02:57]} 6... Ngf6 {[%clk 0:02:57.6]} 7.
Nc3 {[%clk 0:02:56.9]} 7... e6 {[%clk 0:02:55.8]} 8. O-O {[%clk 0:02:57.1]} 8...
Qc7 {[%clk 0:02:53.9]} 9. h3 {[%clk 0:02:57]} 9... Be7 {[%clk 0:02:53.9]} 10.
Be3 {[%clk 0:02:57.5]} 10... O-O {[%clk 0:02:53.7]} 11. f4 {[%clk 0:02:51.2]}
11... b5 {[%clk 0:02:51.9]} 12. f5 {[%clk 0:02:43.7]} 12... b4 {[%clk
0:02:43.1]} 13. fxe6 {[%clk 0:02:24.1]} 13... Nc5 {[%clk 0:02:24.9]} 14. exf7+
{[%clk 0:02:19.2]} 14... Kh8 {[%clk 0:02:07.7]} 15. Nd5 {[%clk 0:02:18.6]} 15...
Nxd5 {[%clk 0:02:07.5]} 16. exd5 {[%clk 0:02:18.2]} 16... Nxd3 {[%clk
0:02:07.7]} 17. Qxd3 {[%clk 0:02:17.8]} 17... Bf6 {[%clk 0:01:56.7]} 18. Ne6
{[%clk 0:02:06.6]} 18... Bxe6 {[%clk 0:01:49.8]} 19. dxe6 {[%clk 0:02:07.5]}
19... Qe7 {[%clk 0:01:28]} 20. Qf5 {[%clk 0:01:51.4]} 20... d5 {[%clk
0:01:14.9]} 21. Qxd5 {[%clk 0:01:38.6]} 21... Rad8 {[%clk 0:01:11.1]} 22. Qf5
{[%clk 0:01:38.5]} 22... Bxb2 {[%clk 0:01:00.1]} 23. Rad1 {[%clk 0:01:35.7]}
23... g6 {[%clk 0:00:41]} 24. Qe4 {[%clk 0:01:29.5]} 24... Rxd1 {[%clk 0:00:30]}
25. Rxd1 {[%clk 0:01:29]} 25... Kg7 {[%clk 0:00:17.7]} 26. Rd7 {[%clk
0:01:23.1]} 26... Qf6 {[%clk 0:00:13.5]} 27. e7 {[%clk 0:01:17.2]} 27... Rxf7
{[%clk 0:00:12.7]} 28. e8=Q {[%clk 0:01:17.9]} 28... Qf1+ {[%clk 0:00:11]} 29.
Kh2 {[%clk 0:01:18.6]} 29... Qf6 {[%clk 0:00:08.9]} 30. Rxf7+ {[%clk 0:01:16.3]}
1-0

[Event "Early-Titled-Tuesday-Blitz-January-23-2024"]
[Site "Chess.com"]
[Date "2024.01.23"]
[Round "3"]
[White "Arlo2024"]
[Black "Perecke"]
[Result "1-0"]
[WhiteElo "2308"]
[BlackElo "2538"]
[TimeControl "180+1"]
[EndTime "8:26:27 PST"]
[Termination "Arlo2024 won by resignation"]

1. e4 {[%clk 0:03:00.9]} 1... c5 {[%clk 0:02:58.1]} 2. Nc3 {[%clk 0:03:00.6]}
2... g6 {[%clk 0:02:57.2]} 3. g3 {[%clk 0:02:58.9]} 3... Bg7 {[%clk 0:02:57.5]}
4. Bg2 {[%clk 0:02:59.7]} 4... e6 {[%clk 0:02:58]} 5. d3 {[%clk 0:02:59.3]} 5...
Ne7 {[%clk 0:02:58.6]} 6. Be3 {[%clk 0:02:59.5]} 6... O-O {[%clk 0:02:59.4]} 7.
Qd2 {[%clk 0:03:00]} 7... b6 {[%clk 0:02:57.2]} 8. Bh6 {[%clk 0:02:59.3]} 8...
d5 {[%clk 0:02:55.1]} 9. Bxg7 {[%clk 0:02:56.3]} 9... Kxg7 {[%clk 0:02:55.1]}
10. exd5 {[%clk 0:02:56.3]} 10... exd5 {[%clk 0:02:54.2]} 11. d4 {[%clk
0:02:55]} 11... Nbc6 {[%clk 0:02:44.9]} 12. Nge2 {[%clk 0:02:36.8]} 12... Ba6
{[%clk 0:01:59.3]} 13. O-O-O {[%clk 0:02:32.8]} 13... cxd4 {[%clk 0:01:45.5]}
14. Nxd4 {[%clk 0:02:31]} 14... Ne5 {[%clk 0:01:46]} 15. h4 {[%clk 0:02:02.9]}
15... Nc4 {[%clk 0:01:41.2]} 16. Qg5 {[%clk 0:01:56.3]} 16... h6 {[%clk
0:01:35]} 17. Qf4 {[%clk 0:01:49.5]} 17... b5 {[%clk 0:01:29.4]} 18. h5 {[%clk
0:01:45.9]} 18... g5 {[%clk 0:01:28.8]} 19. Nf5+ {[%clk 0:01:44.2]} 19... Kh7
{[%clk 0:01:04.8]} 20. Qf3 {[%clk 0:01:36.8]} 20... Ne5 {[%clk 0:00:10.3]} 21.
Qe2 {[%clk 0:01:16]} 21... N7c6 {[%clk 0:00:10.3]} 22. Rxd5 {[%clk 0:01:11]}
22... Qf6 {[%clk 0:00:03.6]} 23. Rd6 {[%clk 0:01:07.3]} 23... Qh8 {[%clk
0:00:02]} 24. Bxc6 {[%clk 0:01:03.3]} 24... Rac8 {[%clk 0:00:01.5]} 25. Be4
{[%clk 0:01:01.9]} 1-0

[Event "Early-Titled-Tuesday-Blitz-January-23-2024"]
[Site "Chess.com"]
[Date "2024.01.23"]
[Round "3"]
[White "jcmesafischer"]
[Black "UnTucopalaTimba"]
[Result "1-0"]
[WhiteElo "2337"]
[BlackElo "1967"]
[TimeControl "180+1"]
[EndTime "8:26:30 PST"]
[Termination "jcmesafischer won by resignation"]

1. e4 {[%clk 0:03:00.9]} 1... c6 {[%clk 0:02:59.4]} 2. Nc3 {[%clk 0:02:50.8]}
2... d5 {[%clk 0:02:58.8]} 3. Nf3 {[%clk 0:02:51.7]} 3... g6 {[%clk 0:02:54.6]}
4. d4 {[%clk 0:02:28.1]} 4... Bg7 {[%clk 0:02:48.2]} 5. exd5 {[%clk 0:02:26.4]}
5... cxd5 {[%clk 0:02:47.8]} 6. Ne5 {[%clk 0:02:19.9]} 6... a6 {[%clk
0:02:39.4]} 7. Bf4 {[%clk 0:02:12.4]} 7... Nc6 {[%clk 0:02:34.2]} 8. Nxc6 {[%clk
0:02:12]} 8... bxc6 {[%clk 0:02:33.7]} 9. Na4 {[%clk 0:02:12.6]} 9... Nf6 {[%clk
0:02:27.3]} 10. Be2 {[%clk 0:02:09.8]} 10... Qa5+ {[%clk 0:02:23.5]} 11. c3
{[%clk 0:02:09.6]} 11... O-O {[%clk 0:02:17.9]} 12. O-O {[%clk 0:02:08.1]} 12...
Nd7 {[%clk 0:02:10.1]} 13. Re1 {[%clk 0:01:45.5]} 13... c5 {[%clk 0:02:04.6]}
14. Nxc5 {[%clk 0:01:38.6]} 14... Nxc5 {[%clk 0:02:03]} 15. b4 {[%clk
0:01:39.1]} 15... Qd8 {[%clk 0:01:51.4]} 16. bxc5 {[%clk 0:01:37.5]} 16... Qa5
{[%clk 0:01:48.6]} 17. Qd2 {[%clk 0:01:36.9]} 17... e6 {[%clk 0:01:37.3]} 18.
Qb2 {[%clk 0:01:22.9]} 18... Bd7 {[%clk 0:01:21.9]} 19. Qb4 {[%clk 0:01:19.8]}
19... Qxb4 {[%clk 0:01:16.3]} 20. cxb4 {[%clk 0:01:17.6]} 20... Bb5 {[%clk
0:01:14.5]} 21. Rad1 {[%clk 0:01:06.1]} 21... Bxe2 {[%clk 0:01:08.9]} 22. Rxe2
{[%clk 0:01:07]} 22... h6 {[%clk 0:00:56.4]} 23. a4 {[%clk 0:01:01.9]} 23... g5
{[%clk 0:00:52.8]} 24. Bd6 {[%clk 0:01:01.3]} 24... Rfc8 {[%clk 0:00:51.9]} 25.
b5 {[%clk 0:01:00.8]} 25... axb5 {[%clk 0:00:49.3]} 26. axb5 {[%clk 0:01:01.7]}
26... Ra4 {[%clk 0:00:47.6]} 27. b6 {[%clk 0:01:00.8]} 27... Rxd4 {[%clk
0:00:44.4]} 28. Rxd4 {[%clk 0:00:59.9]} 28... Bxd4 {[%clk 0:00:44.3]} 29. b7
{[%clk 0:01:00.1]} 29... Rd8 {[%clk 0:00:34.1]} 30. c6 {[%clk 0:00:57.4]} 30...
Bf6 {[%clk 0:00:28.7]} 31. c7 {[%clk 0:00:55.8]} 31... Rxd6 {[%clk 0:00:28.4]}
32. b8=Q+ {[%clk 0:00:52.8]} 32... Kg7 {[%clk 0:00:28.2]} 33. c8=Q {[%clk
0:00:52.8]} 1-0

[Event "Early-Titled-Tuesday-Blitz-January-23-2024"]
[Site "Chess.com"]
[Date "2024.01.23"]
[Round "3"]
[White "ElDivis"]
[Black "DTChess"]
[Result "0-1"]
[WhiteElo "2435"]
[BlackElo "2626"]
[TimeControl "180+1"]
[EndTime "8:26:32 PST"]
[Termination "DTChess won on time"]

1. e4 {[%clk 0:02:54.4]} 1... e5 {[%clk 0:02:59.2]} 2. Nf3 {[%clk 0:02:54.1]}
2... Nc6 {[%clk 0:02:59.2]} 3. Nc3 {[%clk 0:02:52.9]} 3... g6 {[%clk 0:02:59]}
4. d4 {[%clk 0:02:50.9]} 4... exd4 {[%clk 0:02:58.8]} 5. Nxd4 {[%clk 0:02:51.8]}
5... Bg7 {[%clk 0:02:58.9]} 6. Nxc6 {[%clk 0:02:52.1]} 6... dxc6 {[%clk
0:02:56.7]} 7. Qxd8+ {[%clk 0:02:51.2]} 7... Kxd8 {[%clk 0:02:56.9]} 8. Bg5+
{[%clk 0:02:52.1]} 8... Bf6 {[%clk 0:02:45.4]} 9. O-O-O+ {[%clk 0:02:49.9]} 9...
Ke8 {[%clk 0:02:42.5]} 10. Bf4 {[%clk 0:02:46.6]} 10... Bd8 {[%clk 0:02:32.1]}
11. Bc4 {[%clk 0:02:37]} 11... f6 {[%clk 0:02:07.4]} 12. e5 {[%clk 0:02:21.3]}
12... f5 {[%clk 0:01:55.3]} 13. h4 {[%clk 0:01:44.3]} 13... h5 {[%clk
0:01:44.9]} 14. e6 {[%clk 0:01:00]} 14... Rh7 {[%clk 0:01:41.3]} 15. e7 {[%clk
0:00:43.5]} 15... Nxe7 {[%clk 0:01:40.2]} 16. Rhe1 {[%clk 0:00:43.8]} 16... b5
{[%clk 0:01:26.8]} 17. Nxb5 {[%clk 0:00:32.9]} 17... Ba6 {[%clk 0:01:15.8]} 18.
Na3 {[%clk 0:00:17.1]} 18... Bxc4 {[%clk 0:01:09.6]} 19. Nxc4 {[%clk 0:00:18]}
19... Kf8 {[%clk 0:01:09.6]} 20. Rd7 {[%clk 0:00:12.4]} 20... Rf7 {[%clk
0:01:08.1]} 21. Ne5 {[%clk 0:00:10.8]} 21... Rf6 {[%clk 0:01:05]} 22. Bg5 {[%clk
0:00:03.7]} 22... Re6 {[%clk 0:01:05.1]} 23. Nxg6+ {[%clk 0:00:02.6]} 23... Rxg6
{[%clk 0:01:03.9]} 24. Bxe7+ {[%clk 0:00:02.3]} 24... Bxe7 {[%clk 0:01:04.4]}
25. Rexe7 {[%clk 0:00:01.8]} 25... Rxg2 {[%clk 0:01:03]} 26. Rf7+ {[%clk
0:00:01.9]} 26... Kg8 {[%clk 0:01:03.6]} 27. Rxf5 {[%clk 0:00:01.9]} 27... Re8
{[%clk 0:01:03.8]} 28. Rd1 {[%clk 0:00:01.5]} 28... Re2 {[%clk 0:01:02.8]} 0-1

[Event "Early-Titled-Tuesday-Blitz-January-23-2024"]
[Site "Chess.com"]
[Date "2024.01.23"]
[Round "3"]
[White "LaPiToB"]
[Black "cthake"]
[Result "0-1"]
[WhiteElo "2309"]
[BlackElo "1848"]
[TimeControl "180+1"]
[EndTime "8:26:35 PST"]
[Termination "cthake won by resignation"]

1. c4 {[%clk 0:03:00.9]} 1... e5 {[%clk 0:02:59.1]} 2. Nc3 {[%clk 0:03:00.7]}
2... Nc6 {[%clk 0:02:59.7]} 3. g3 {[%clk 0:03:01]} 3... d6 {[%clk 0:02:59.9]} 4.
Bg2 {[%clk 0:03:01.3]} 4... g6 {[%clk 0:03:00.1]} 5. e4 {[%clk 0:03:01.4]} 5...
Bg7 {[%clk 0:03:00.3]} 6. Nge2 {[%clk 0:03:01.5]} 6... Nge7 {[%clk 0:03:00.3]}
7. d3 {[%clk 0:03:01.9]} 7... O-O {[%clk 0:03:00.2]} 8. O-O {[%clk 0:03:02.1]}
8... Be6 {[%clk 0:02:59.8]} 9. Nd5 {[%clk 0:02:58.2]} 9... Qd7 {[%clk
0:02:53.2]} 10. Bh6 {[%clk 0:02:46.4]} 10... f5 {[%clk 0:02:50.2]} 11. Bxg7
{[%clk 0:02:45.6]} 11... Kxg7 {[%clk 0:02:50.7]} 12. f4 {[%clk 0:02:41.3]} 12...
Nd8 {[%clk 0:02:36.1]} 13. Nec3 {[%clk 0:02:33.5]} 13... c6 {[%clk 0:02:35.7]}
14. Ne3 {[%clk 0:02:29.4]} 14... fxe4 {[%clk 0:02:12]} 15. Nxe4 {[%clk
0:02:24.6]} 15... exf4 {[%clk 0:02:08]} 16. gxf4 {[%clk 0:02:15.5]} 16... Nf5
{[%clk 0:02:07.7]} 17. Qd2 {[%clk 0:01:57.4]} 17... d5 {[%clk 0:02:07.2]} 18.
Ng5 {[%clk 0:01:51.8]} 18... h6 {[%clk 0:01:53.5]} 19. Nxe6+ {[%clk 0:01:47.8]}
19... Nxe6 {[%clk 0:01:45.4]} 20. cxd5 {[%clk 0:01:38.2]} 20... cxd5 {[%clk
0:01:35.5]} 21. Nxd5 {[%clk 0:01:33]} 21... Ned4 {[%clk 0:01:22.7]} 22. Rac1
{[%clk 0:01:23.8]} 22... Rac8 {[%clk 0:01:18]} 23. Rfe1 {[%clk 0:01:14.2]} 23...
Rxc1 {[%clk 0:01:16.7]} 24. Rxc1 {[%clk 0:01:12.7]} 24... Nc6 {[%clk 0:01:16]}
25. Re1 {[%clk 0:01:08.4]} 25... Re8 {[%clk 0:01:12.6]} 26. Qc3+ {[%clk
0:01:06.8]} 26... Nfd4 {[%clk 0:01:09.2]} 27. Rxe8 {[%clk 0:00:51.6]} 27... Qxe8
{[%clk 0:01:08.9]} 28. Be4 {[%clk 0:00:50.9]} 28... Qe6 {[%clk 0:01:04.8]} 29.
Ne3 {[%clk 0:00:43]} 29... Kh7 {[%clk 0:01:00]} 30. b4 {[%clk 0:00:29.3]} 30...
Ne2+ {[%clk 0:00:59.2]} 31. Kf2 {[%clk 0:00:27.4]} 31... Nxc3 {[%clk 0:00:59.4]}
32. f5 {[%clk 0:00:23.7]} 32... Nxe4+ {[%clk 0:00:59.1]} 33. dxe4 {[%clk
0:00:22.9]} 33... Qxa2+ {[%clk 0:00:59]} 34. Kf3 {[%clk 0:00:20.7]} 34... gxf5
{[%clk 0:00:56.7]} 0-1

[Event "Early-Titled-Tuesday-Blitz-January-23-2024"]
[Site "Chess.com"]
[Date "2024.01.23"]
[Round "3"]
[White "Roman_Ovetchkin"]
[Black "Sargsyan_Shant"]
[Result "0-1"]
[WhiteElo "2660"]
[BlackElo "2920"]
[TimeControl "180+1"]
[EndTime "8:26:40 PST"]
[Termination "Sargsyan_Shant won by resignation"]

1. d4 {[%clk 0:03:00.9]} 1... g6 {[%clk 0:02:58.7]} 2. e4 {[%clk 0:03:00.3]}
2... Nf6 {[%clk 0:02:59.1]} 3. e5 {[%clk 0:02:59.1]} 3... Nh5 {[%clk 0:02:59.4]}
4. Be2 {[%clk 0:02:59.3]} 4... d6 {[%clk 0:02:59.5]} 5. Nf3 {[%clk 0:02:49.8]}
5... Bg7 {[%clk 0:02:59.3]} 6. O-O {[%clk 0:02:48.7]} 6... dxe5 {[%clk 0:02:59]}
7. Nxe5 {[%clk 0:02:40.3]} 7... Bxe5 {[%clk 0:02:59.2]} 8. dxe5 {[%clk
0:02:40.5]} 8... Qxd1 {[%clk 0:03:00.1]} 9. Rxd1 {[%clk 0:02:40.4]} 9... Nc6
{[%clk 0:03:01]} 10. f4 {[%clk 0:02:36.1]} 10... Ng7 {[%clk 0:02:58.8]} 11. Nc3
{[%clk 0:02:34]} 11... Bf5 {[%clk 0:02:54.9]} 12. Nb5 {[%clk 0:02:24.2]} 12...
Ne6 {[%clk 0:02:43.9]} 13. c3 {[%clk 0:02:22.2]} 13... a6 {[%clk 0:02:39.5]} 14.
Nd4 {[%clk 0:02:12.1]} 14... Nexd4 {[%clk 0:02:39.8]} 15. cxd4 {[%clk 0:02:12]}
15... O-O-O {[%clk 0:02:40.7]} 16. Be3 {[%clk 0:01:59.8]} 16... Nb4 {[%clk
0:02:40.3]} 17. Bf2 {[%clk 0:02:00]} 17... h5 {[%clk 0:02:38.2]} 18. a3 {[%clk
0:01:47.1]} 18... Nd5 {[%clk 0:02:36.7]} 19. g3 {[%clk 0:01:47.7]} 19... Bg4
{[%clk 0:02:36.9]} 20. Kf1 {[%clk 0:01:42.7]} 20... Kd7 {[%clk 0:02:36.3]} 21.
Rd2 {[%clk 0:01:39.3]} 21... Bxe2+ {[%clk 0:02:35.4]} 22. Kxe2 {[%clk
0:01:39.2]} 22... Ke6 {[%clk 0:02:36.3]} 23. Kf3 {[%clk 0:01:39.3]} 23... c6
{[%clk 0:02:32.2]} 24. Rc1 {[%clk 0:01:38.1]} 24... Rd7 {[%clk 0:02:30.5]} 25.
h3 {[%clk 0:01:36.3]} 25... f5 {[%clk 0:02:27.8]} 26. h4 {[%clk 0:01:29.4]}
26... Rhd8 {[%clk 0:02:27.4]} 27. Rcd1 {[%clk 0:01:24.7]} 27... Nc7 {[%clk
0:02:27.7]} 28. Ke2 {[%clk 0:01:22.4]} 28... Rd5 {[%clk 0:02:27.2]} 29. Kd3
{[%clk 0:01:17.8]} 29... c5 {[%clk 0:02:27.6]} 30. Kc2 {[%clk 0:01:16.3]} 30...
c4 {[%clk 0:02:27]} 31. Kc3 {[%clk 0:01:11.5]} 31... b5 {[%clk 0:02:23.2]} 32.
b3 {[%clk 0:01:08.1]} 32... cxb3 {[%clk 0:02:15.4]} 33. Kxb3 {[%clk 0:01:09]}
33... Kd7 {[%clk 0:02:11]} 34. Rc2 {[%clk 0:01:07.6]} 34... Ne6 {[%clk
0:02:11.2]} 35. Rdc1 {[%clk 0:01:03.9]} 35... Rxd4 {[%clk 0:02:00.6]} 36. Bxd4
{[%clk 0:00:59.6]} 36... Nxd4+ {[%clk 0:02:01.5]} 37. Kb4 {[%clk 0:01:00]} 37...
Nxc2+ {[%clk 0:02:01.1]} 38. Rxc2 {[%clk 0:01:00.9]} 38... Rc8 {[%clk 0:02:02]}
39. e6+ {[%clk 0:00:57]} 39... Kd8 {[%clk 0:02:02.7]} 40. Rd2+ {[%clk
0:00:56.1]} 40... Ke8 {[%clk 0:02:03]} 41. Rd3 {[%clk 0:00:50]} 41... Rc6 {[%clk
0:02:02.3]} 42. Re3 {[%clk 0:00:50.1]} 42... Kd8 {[%clk 0:02:01.2]} 43. Rd3+
{[%clk 0:00:48.7]} 43... Kc8 {[%clk 0:02:01.3]} 44. Re3 {[%clk 0:00:46]} 44...
Kb7 {[%clk 0:02:01.3]} 45. Kb3 {[%clk 0:00:42.7]} 45... Kb6 {[%clk 0:02:01.7]}
46. a4 {[%clk 0:00:41.7]} 46... a5 {[%clk 0:02:01.2]} 47. axb5 {[%clk
0:00:40.7]} 47... Kxb5 {[%clk 0:02:02.1]} 48. Re5+ {[%clk 0:00:40.2]} 48... Rc5
{[%clk 0:02:02.7]} 49. Re3 {[%clk 0:00:40.7]} 49... a4+ {[%clk 0:02:02]} 50. Ka3
{[%clk 0:00:40]} 50... Rc4 {[%clk 0:01:54.1]} 51. Re5+ {[%clk 0:00:37.8]} 51...
Kc6 {[%clk 0:01:53.8]} 52. Ra5 {[%clk 0:00:33.5]} 52... Rc3+ {[%clk 0:01:54.3]}
53. Kb4 {[%clk 0:00:32.8]} 53... Rxg3 {[%clk 0:01:55.2]} 54. Rxa4 {[%clk
0:00:28.5]} 54... Kd5 {[%clk 0:01:53.8]} 0-1

[Event "Early-Titled-Tuesday-Blitz-January-23-2024"]
[Site "Chess.com"]
[Date "2024.01.23"]
[Round "3"]
[White "EvilMorty23"]
[Black "Chessdude1987"]
[Result "1-0"]
[WhiteElo "2506"]
[BlackElo "2277"]
[TimeControl "180+1"]
[EndTime "8:26:40 PST"]
[Termination "EvilMorty23 won on time"]

1. e4 {[%clk 0:03:00.9]} 1... e6 {[%clk 0:02:58.8]} 2. d4 {[%clk 0:02:57.2]}
2... d5 {[%clk 0:02:58.3]} 3. Nd2 {[%clk 0:02:57.6]} 3... c5 {[%clk 0:02:57.9]}
4. Ngf3 {[%clk 0:02:57]} 4... cxd4 {[%clk 0:02:56.8]} 5. exd5 {[%clk 0:02:57.9]}
5... Qxd5 {[%clk 0:02:55.4]} 6. Bc4 {[%clk 0:02:58.6]} 6... Qd6 {[%clk 0:02:55]}
7. O-O {[%clk 0:02:59.5]} 7... Nf6 {[%clk 0:02:54.8]} 8. Nb3 {[%clk 0:03:00.4]}
8... Nc6 {[%clk 0:02:54.9]} 9. Nbxd4 {[%clk 0:03:01.1]} 9... Nxd4 {[%clk
0:02:55.6]} 10. Nxd4 {[%clk 0:03:01.9]} 10... Be7 {[%clk 0:02:54.3]} 11. Nb5
{[%clk 0:02:55.6]} 11... Qc6 {[%clk 0:02:53.2]} 12. Bf4 {[%clk 0:02:35.4]} 12...
O-O {[%clk 0:02:43.2]} 13. Qe2 {[%clk 0:02:28.8]} 13... a6 {[%clk 0:02:37.9]}
14. Nd4 {[%clk 0:02:24.1]} 14... Qc5 {[%clk 0:02:32.7]} 15. Be3 {[%clk
0:02:14.2]} 15... Qc7 {[%clk 0:02:16.6]} 16. a4 {[%clk 0:02:13]} 16... b6 {[%clk
0:02:16.1]} 17. Rad1 {[%clk 0:02:04.7]} 17... Bb7 {[%clk 0:02:16]} 18. Bg5
{[%clk 0:02:03.1]} 18... Rfe8 {[%clk 0:02:04.2]} 19. Rfe1 {[%clk 0:01:56.7]}
19... Nd5 {[%clk 0:01:58.2]} 20. Nxe6 {[%clk 0:01:31.1]} 20... Bxg5 {[%clk
0:01:52.5]} 21. Nxc7 {[%clk 0:01:30.1]} 21... Rxe2 {[%clk 0:01:52.2]} 22. Rxe2
{[%clk 0:01:30.6]} 22... Nxc7 {[%clk 0:01:49.8]} 23. Rd7 {[%clk 0:01:30.5]}
23... Rd8 {[%clk 0:01:37.3]} 24. Red2 {[%clk 0:01:14.9]} 24... Rc8 {[%clk
0:00:43.4]} 25. f4 {[%clk 0:00:59.9]} 25... Bf6 {[%clk 0:00:42.4]} 26. Rxf7
{[%clk 0:00:58.9]} 26... Kh8 {[%clk 0:00:34.3]} 27. Rdd7 {[%clk 0:00:57.3]}
27... Bc6 {[%clk 0:00:03.4]} 28. Rxc7 {[%clk 0:00:53.6]} 28... Bd4+ {[%clk
0:00:03.2]} 29. Kf1 {[%clk 0:00:53.4]} 1-0

[Event "Early-Titled-Tuesday-Blitz-January-23-2024"]
[Site "Chess.com"]
[Date "2024.01.23"]
[Round "3"]
[White "WhiteKnight2612"]
[Black "RantomOpening"]
[Result "1-0"]
[WhiteElo "2861"]
[BlackElo "2520"]
[TimeControl "180+1"]
[EndTime "8:26:44 PST"]
[Termination "WhiteKnight2612 won by resignation"]

1. e4 {[%clk 0:02:55.3]} 1... c5 {[%clk 0:02:59.6]} 2. Nf3 {[%clk 0:02:50.2]}
2... e6 {[%clk 0:02:59.9]} 3. c4 {[%clk 0:02:48.9]} 3... Nc6 {[%clk 0:02:59.4]}
4. Nc3 {[%clk 0:02:48.5]} 4... Nf6 {[%clk 0:02:59.6]} 5. h3 {[%clk 0:02:44.8]}
5... d5 {[%clk 0:02:59.4]} 6. e5 {[%clk 0:02:41.6]} 6... Nd7 {[%clk 0:02:51.3]}
7. cxd5 {[%clk 0:02:40]} 7... exd5 {[%clk 0:02:48.8]} 8. Bb5 {[%clk 0:02:32.8]}
8... a6 {[%clk 0:02:41.3]} 9. Bxc6 {[%clk 0:02:30.5]} 9... bxc6 {[%clk
0:02:42.2]} 10. O-O {[%clk 0:02:29.3]} 10... Be7 {[%clk 0:02:38.7]} 11. d4
{[%clk 0:02:29]} 11... cxd4 {[%clk 0:02:36.9]} 12. Nxd4 {[%clk 0:02:16.8]} 12...
Nxe5 {[%clk 0:02:28.7]} 13. Re1 {[%clk 0:02:16.9]} 13... Qd6 {[%clk 0:02:14.7]}
14. Qe2 {[%clk 0:02:01.9]} 14... f6 {[%clk 0:02:13.2]} 15. f4 {[%clk 0:02:00]}
15... Ng6 {[%clk 0:02:12.1]} 16. h4 {[%clk 0:01:43]} 16... Nxh4 {[%clk
0:01:59.1]} 17. Nxc6 {[%clk 0:01:38.6]} 17... Nf5 {[%clk 0:01:43.3]} 18. Nxe7
{[%clk 0:01:24]} 18... Nxe7 {[%clk 0:01:43]} 19. Nxd5 {[%clk 0:01:21.8]} 19...
Kf7 {[%clk 0:01:10.7]} 20. Qxe7+ {[%clk 0:01:16.6]} 20... Qxe7 {[%clk
0:01:08.7]} 21. Rxe7+ {[%clk 0:01:17.5]} 21... Kg6 {[%clk 0:01:09.6]} 22. Nb6
{[%clk 0:01:12]} 22... Rb8 {[%clk 0:01:08.8]} 23. Nxc8 {[%clk 0:01:11.7]} 23...
Rbxc8 {[%clk 0:01:09.7]} 24. f5+ {[%clk 0:01:10.5]} 24... Kxf5 {[%clk
0:01:09.7]} 25. Rxg7 {[%clk 0:01:10.9]} 25... Rc2 {[%clk 0:01:09.8]} 26. b3
{[%clk 0:01:07.5]} 26... Re8 {[%clk 0:01:07.8]} 27. Ba3 {[%clk 0:00:59.8]} 27...
Ree2 {[%clk 0:01:07.6]} 28. Rf1+ {[%clk 0:00:59.2]} 28... Ke6 {[%clk 0:01:08]}
29. Re7+ {[%clk 0:00:59.8]} 29... Kd5 {[%clk 0:01:06.1]} 30. Rf5+ {[%clk
0:00:57.8]} 30... Kd4 {[%clk 0:01:04.8]} 31. Rxe2 {[%clk 0:00:54]} 31... Rxe2
{[%clk 0:01:04.8]} 32. Rf2 {[%clk 0:00:54.3]} 32... Re6 {[%clk 0:00:48.5]} 33.
Rxf6 {[%clk 0:00:51.6]} 33... Re1+ {[%clk 0:00:43.9]} 34. Kh2 {[%clk 0:00:49.8]}
34... Ra1 {[%clk 0:00:41.4]} 35. Rxa6 {[%clk 0:00:49.8]} 1-0